[Event "*** Titled Tuesday Blitz"]
[Site "Chess.com"]
[Date "2020.02.04"]
[Round "5"]
[White "korbul"]
[Black "sganerdene"]
[Result "1-0"]
[WhiteElo "2592"]
[BlackElo "2732"]
[TimeControl "180+2"]
[EndTime "10:11:50 PST"]
[Termination "korbul won by resignation"]

1. d4 {[%clk 0:03:01.9]} 1... Nf6 {[%clk 0:03:00.6]} 2. Nf3 {[%clk 0:03:02.5]}
2... g6 {[%clk 0:03:01.5]} 3. Bg5 {[%clk 0:03:03]} 3... Bg7 {[%clk 0:03:02.3]}
4. Nbd2 {[%clk 0:03:04.1]} 4... d5 {[%clk 0:03:03.4]} 5. e3 {[%clk 0:03:03.9]}
5... O-O {[%clk 0:03:04.3]} 6. Be2 {[%clk 0:03:04.2]} 6... b6 {[%clk 0:03:05.5]}
7. O-O {[%clk 0:03:04.6]} 7... Bb7 {[%clk 0:03:07]} 8. c3 {[%clk 0:03:04.7]}
8... Nbd7 {[%clk 0:03:08.4]} 9. h3 {[%clk 0:03:04.8]} 9... c5 {[%clk 0:03:09.3]}
10. b4 {[%clk 0:03:05]} 10... Qc7 {[%clk 0:03:01.3]} 11. bxc5 {[%clk 0:03:04.9]}
11... bxc5 {[%clk 0:03:02]} 12. Qa4 {[%clk 0:03:05.6]} 12... Bc6 {[%clk
0:03:00.4]} 13. Qa3 {[%clk 0:03:05.6]} 13... Ne4 {[%clk 0:02:43.1]} 14. Nxe4
{[%clk 0:03:03.4]} 14... dxe4 {[%clk 0:02:43.9]} 15. Nd2 {[%clk 0:02:52.7]}
15... Rfe8 {[%clk 0:02:44.2]} 16. Nb3 {[%clk 0:02:45.7]} 16... Bd5 {[%clk
0:02:36.1]} 17. Rac1 {[%clk 0:02:40.6]} 17... Rac8 {[%clk 0:02:34.1]} 18. Ba6
{[%clk 0:02:33.9]} 18... Bb7 {[%clk 0:02:32.8]} 19. Bxb7 {[%clk 0:02:27.2]}
19... Qxb7 {[%clk 0:02:33.6]} 20. dxc5 {[%clk 0:02:12.6]} 20... Qc7 {[%clk
0:02:31.9]} 21. Rfd1 {[%clk 0:02:11.6]} 21... Nxc5 {[%clk 0:02:27.2]} 22. Nxc5
{[%clk 0:02:12.2]} 22... Qxc5 {[%clk 0:02:28.3]} 23. Qxc5 {[%clk 0:02:12.9]}
23... Rxc5 {[%clk 0:02:30.2]} 24. Bh4 {[%clk 0:02:06.1]} 24... g5 {[%clk
0:02:24]} 25. Bg3 {[%clk 0:02:05.6]} 25... Rxc3 {[%clk 0:02:23.5]} 26. Rxc3
{[%clk 0:02:05.7]} 26... Bxc3 {[%clk 0:02:25.4]} 27. Rd7 {[%clk 0:02:05.8]}
27... a5 {[%clk 0:02:26.2]} 28. Rc7 {[%clk 0:02:04.8]} 28... Bb4 {[%clk
0:02:26.7]} 29. Be5 {[%clk 0:02:04.5]} 29... f6 {[%clk 0:02:26.3]} 30. Bd4
{[%clk 0:02:02.8]} 30... Kf7 {[%clk 0:02:25.3]} 31. g4 {[%clk 0:02:02.1]} 31...
Ke6 {[%clk 0:02:24.3]} 32. Kg2 {[%clk 0:02:01.2]} 32... Kd5 {[%clk 0:02:25.4]}
33. Rd7+ {[%clk 0:02:01.6]} 33... Kc6 {[%clk 0:02:24.4]} 34. Ra7 {[%clk
0:02:02.2]} 34... Rb8 {[%clk 0:02:16.7]} 35. a3 {[%clk 0:01:59.2]} 35... Bxa3
{[%clk 0:02:17.3]} 36. Rxa5 {[%clk 0:01:59.4]} 36... Bd6 {[%clk 0:02:18.2]} 37.
Ra6+ {[%clk 0:01:56.8]} 37... Kd5 {[%clk 0:02:17]} 38. Ra5+ {[%clk 0:01:57.1]}
38... Ke6 {[%clk 0:02:18.2]} 39. Ra6 {[%clk 0:01:56.6]} 39... Rc8 {[%clk
0:02:19.3]} 40. Ra5 {[%clk 0:01:57.2]} 40... Rc2 {[%clk 0:02:19.1]} 41. Ra6
{[%clk 0:01:56.9]} 41... Kf7 {[%clk 0:02:18.8]} 42. Ra5 {[%clk 0:01:54.9]} 42...
Kg6 {[%clk 0:02:13.6]} 43. Ra6 {[%clk 0:01:53.8]} 43... Bg3 {[%clk 0:02:12.8]}
44. Kxg3 {[%clk 0:01:53.4]} 44... Rc7 {[%clk 0:02:07.7]} 45. Re6 {[%clk
0:01:52.8]} 45... Kf7 {[%clk 0:02:04.7]} 46. Rxe4 {[%clk 0:01:46.1]} 46... Rc4
{[%clk 0:02:04]} 47. Kf3 {[%clk 0:01:42.3]} 47... Rc2 {[%clk 0:02:02.2]} 48. Bb6
{[%clk 0:01:40.3]} 48... Rd2 {[%clk 0:02:00]} 49. Rd4 {[%clk 0:01:39]} 49... Rb2
{[%clk 0:02:00.1]} 50. Bc5 {[%clk 0:01:38.9]} 50... Rc2 {[%clk 0:02:00.4]} 51.
Bb4 {[%clk 0:01:39.7]} 51... Rc7 {[%clk 0:02:01.4]} 52. Rd5 {[%clk 0:01:27.8]}
52... Rb7 {[%clk 0:02:02]} 53. Bc3 {[%clk 0:01:26.9]} 53... Kg6 {[%clk
0:02:01.6]} 54. Bd4 {[%clk 0:01:26]} 54... h5 {[%clk 0:02:02.2]} 55. Ra5 {[%clk
0:01:24.5]} 55... hxg4+ {[%clk 0:02:03.1]} 56. hxg4 {[%clk 0:01:25.2]} 56... e5
{[%clk 0:02:02.7]} 57. Bc5 {[%clk 0:01:17.6]} 57... Rb2 {[%clk 0:02:00.7]} 58.
Ra7 {[%clk 0:01:17.2]} 58... Rb8 {[%clk 0:01:46.1]} 59. Bd6 {[%clk 0:01:17.4]}
59... Re8 {[%clk 0:01:44.8]} 60. Be7 {[%clk 0:01:14.5]} 60... Kf7 {[%clk
0:01:43.8]} 61. Bc5+ {[%clk 0:01:14.4]} 61... Ke6 {[%clk 0:01:45.1]} 62. Ra6+
{[%clk 0:01:14.6]} 62... Kf7 {[%clk 0:01:46.3]} 63. Ke4 {[%clk 0:01:14.8]} 63...
Kg6 {[%clk 0:01:47.5]} 64. Ra7 {[%clk 0:01:14.2]} 64... Rc8 {[%clk 0:01:47.9]}
65. Ra5 {[%clk 0:01:14.6]} 65... Rb8 {[%clk 0:01:48.2]} 66. Ra2 {[%clk
0:01:13.4]} 66... Rc8 {[%clk 0:01:49.3]} 67. Bd6 {[%clk 0:01:11]} 67... Rh8
{[%clk 0:01:46.6]} 68. Kd5 {[%clk 0:01:08.8]} 68... Rh4 {[%clk 0:01:43.9]} 69.
f3 {[%clk 0:01:09.7]} 69... Rh3 {[%clk 0:01:44.6]} 70. Rf2 {[%clk 0:01:09.2]}
70... Kf7 {[%clk 0:01:44.6]} 71. Ke4 {[%clk 0:01:10.3]} 71... Ke6 {[%clk
0:01:44.9]} 72. Bc5 {[%clk 0:01:10.8]} 72... Rh4 {[%clk 0:01:46.3]} 73. Kd3
{[%clk 0:01:07.5]} 73... f5 {[%clk 0:01:46.9]} 74. gxf5+ {[%clk 0:01:07.3]}
74... Kxf5 {[%clk 0:01:48.3]} 75. e4+ {[%clk 0:01:06.3]} 75... Kf6 {[%clk
0:01:44.5]} 76. Be3 {[%clk 0:01:05]} 76... Rh3 {[%clk 0:01:41.7]} 77. Ke2 {[%clk
0:01:05.2]} 77... Rg3 {[%clk 0:01:42.6]} 78. Rh2 {[%clk 0:01:05.1]} 78... g4
{[%clk 0:01:42]} 79. Rf2 {[%clk 0:00:59.1]} 79... Ke6 {[%clk 0:01:38.6]} 80. f4
{[%clk 0:00:54.2]} 80... exf4 {[%clk 0:01:38.3]} 81. Bxf4 {[%clk 0:00:53.7]}
81... Ra3 {[%clk 0:01:37.9]} 82. Rh2 {[%clk 0:00:52.9]} 82... Ra2+ {[%clk
0:01:36.5]} 83. Ke3 {[%clk 0:00:52.5]} 83... Ra3+ {[%clk 0:01:36.4]} 84. Kd4
{[%clk 0:00:52.3]} 84... Ra4+ {[%clk 0:01:37.5]} 85. Kd3 {[%clk 0:00:53.5]}
85... Ra3+ {[%clk 0:01:38.8]} 86. Ke2 {[%clk 0:00:44.9]} 86... Ra2+ {[%clk
0:01:37.6]} 87. Kf1 {[%clk 0:00:42.7]} 87... Ra4 {[%clk 0:01:37.4]} 88. Re2
{[%clk 0:00:38.9]} 88... Ra3 {[%clk 0:01:38.1]} 89. Kg2 {[%clk 0:00:39.1]} 89...
Rf3 {[%clk 0:01:38.3]} 90. Bg3 {[%clk 0:00:39.4]} 90... Ra3 {[%clk 0:01:38.8]}
91. e5 {[%clk 0:00:39.4]} 91... Rb3 {[%clk 0:01:36.7]} 92. Rf2 {[%clk
0:00:40.2]} 92... Rb4 {[%clk 0:01:35.6]} 93. Rf6+ {[%clk 0:00:40.4]} 93... Ke7
{[%clk 0:01:36.9]} 94. Rf4 {[%clk 0:00:39.2]} 94... Rb2+ {[%clk 0:01:22]} 95.
Bf2 {[%clk 0:00:39.8]} 95... Ke6 {[%clk 0:01:22.2]} 96. Re4 {[%clk 0:00:40.7]}
96... Rb5 {[%clk 0:01:10.6]} 97. Bd4 {[%clk 0:00:40.4]} 97... Rb4 {[%clk
0:01:10.2]} 98. Rxg4 {[%clk 0:00:40.5]} 98... Kf5 {[%clk 0:01:09.9]} 99. Rh4
{[%clk 0:00:34.6]} 99... Rb3 {[%clk 0:01:10.2]} 100. Rh5+ {[%clk 0:00:23]}
100... Ke4 {[%clk 0:01:11.1]} 101. Bf2 {[%clk 0:00:20.9]} 101... Kd5 {[%clk
0:00:57.4]} 102. Bg3 {[%clk 0:00:21.1]} 102... Re3 {[%clk 0:00:56.1]} 103. Kh3
{[%clk 0:00:21.4]} 103... Re4 {[%clk 0:00:54.2]} 104. Kg2 {[%clk 0:00:20.1]}
104... Re3 {[%clk 0:00:54.4]} 105. Kf2 {[%clk 0:00:20.7]} 105... Rb3 {[%clk
0:00:54.8]} 106. Rh6 {[%clk 0:00:21.3]} 106... Ke4 {[%clk 0:00:47.5]} 107. e6
{[%clk 0:00:21.6]} 107... Rb2+ {[%clk 0:00:43.9]} 108. Kg1 {[%clk 0:00:22]}
108... Kf3 {[%clk 0:00:43.1]} 109. Bh4 {[%clk 0:00:19.1]} 109... Re2 {[%clk
0:00:40.6]} 110. e7 {[%clk 0:00:18.8]} 110... Re4 {[%clk 0:00:39.3]} 111. Rh8
{[%clk 0:00:17.6]} 111... Rg4+ {[%clk 0:00:39.3]} 1-0

[Event "*** Titled Tuesday Blitz"]
[Site "Chess.com"]
[Date "2020.02.04"]
[Round "6"]
[White "Carnivoras"]
[Black "Nathan_Filgueiras"]
[Result "1-0"]
[WhiteElo "2549"]
[BlackElo "2290"]
[TimeControl "180+2"]
[EndTime "10:16:36 PST"]
[Termination "Carnivoras won by resignation"]

1. d4 {[%clk 0:03:01.9]} 1... Nf6 {[%clk 0:03:00.6]} 2. Nf3 {[%clk 0:03:02.6]}
2... e6 {[%clk 0:02:18.8]} 3. Bg5 {[%clk 0:03:02.7]} 3... Be7 {[%clk 0:02:17.8]}
4. Nbd2 {[%clk 0:03:02.6]} 4... d5 {[%clk 0:02:17.4]} 5. e3 {[%clk 0:03:03.4]}
5... O-O {[%clk 0:02:10]} 6. c4 {[%clk 0:03:03.8]} 6... b6 {[%clk 0:02:06.3]} 7.
Bd3 {[%clk 0:03:03.1]} 7... Bb7 {[%clk 0:02:07.1]} 8. O-O {[%clk 0:03:02.1]}
8... h6 {[%clk 0:02:08.6]} 9. Bxf6 {[%clk 0:03:00.7]} 9... Bxf6 {[%clk
0:02:09.9]} 10. Rc1 {[%clk 0:02:59.9]} 10... Nd7 {[%clk 0:02:08.2]} 11. cxd5
{[%clk 0:02:58]} 11... exd5 {[%clk 0:02:08.3]} 12. b4 {[%clk 0:02:59.1]} 12...
g6 {[%clk 0:01:52.6]} 13. Qa4 {[%clk 0:02:57.5]} 13... a6 {[%clk 0:01:48]} 14.
Rc2 {[%clk 0:02:57.7]} 14... b5 {[%clk 0:01:48.4]} 15. Qb3 {[%clk 0:02:48.3]}
15... Nb6 {[%clk 0:01:48.7]} 16. Qb1 {[%clk 0:02:45.2]} 16... Kg7 {[%clk
0:01:48.8]} 17. Nb3 {[%clk 0:02:45.3]} 17... Nc4 {[%clk 0:01:48.8]} 18. Nc5
{[%clk 0:02:46.5]} 18... Bc6 {[%clk 0:01:47.7]} 19. Rd1 {[%clk 0:02:46.2]} 19...
Be7 {[%clk 0:01:44.6]} 20. Rc3 {[%clk 0:02:42.4]} 20... f5 {[%clk 0:01:43.9]}
21. Bxc4 {[%clk 0:02:40.4]} 21... dxc4 {[%clk 0:01:43.4]} 22. Ne6+ {[%clk
0:02:41.1]} 1-0

[Event "*** Titled Tuesday Blitz"]
[Site "Chess.com"]
[Date "2020.02.04"]
[Round "6"]
[White "Aygehovit1992"]
[Black "KhazarBabazada"]
[Result "1-0"]
[WhiteElo "2657"]
[BlackElo "2906"]
[TimeControl "180+2"]
[EndTime "10:17:02 PST"]
[Termination "Aygehovit1992 won by resignation"]

1. e4 {[%clk 0:03:01.9]} 1... c5 {[%clk 0:02:55.9]} 2. Nc3 {[%clk 0:03:02.5]}
2... d6 {[%clk 0:02:56.8]} 3. f4 {[%clk 0:03:02.2]} 3... g6 {[%clk 0:02:57.8]}
4. Bb5+ {[%clk 0:03:02.1]} 4... Bd7 {[%clk 0:02:57.9]} 5. Bxd7+ {[%clk
0:03:02.2]} 5... Nxd7 {[%clk 0:02:59.8]} 6. Nf3 {[%clk 0:03:03.1]} 6... Bg7
{[%clk 0:02:59.9]} 7. O-O {[%clk 0:03:03.5]} 7... e6 {[%clk 0:02:58.1]} 8. f5
{[%clk 0:03:00.9]} 8... Ngf6 {[%clk 0:02:54.8]} 9. fxe6 {[%clk 0:02:56.1]} 9...
fxe6 {[%clk 0:02:50.6]} 10. Ng5 {[%clk 0:02:50.6]} 10... Qe7 {[%clk 0:02:49.8]}
11. Nb5 {[%clk 0:02:50.9]} 11... O-O-O {[%clk 0:02:05.8]} 12. Nxa7+ {[%clk
0:02:48.1]} 12... Kb8 {[%clk 0:02:06.8]} 13. Nb5 {[%clk 0:02:49.3]} 13... Rhf8
{[%clk 0:01:56.3]} 14. d3 {[%clk 0:02:32.3]} 14... h6 {[%clk 0:01:49.5]} 15. Nf3
{[%clk 0:02:32.7]} 15... g5 {[%clk 0:01:47.7]} 16. Qe1 {[%clk 0:02:33.7]} 16...
Ng4 {[%clk 0:01:44.8]} 17. Qa5 {[%clk 0:02:33.3]} 17... Bd4+ {[%clk 0:01:29.5]}
18. Nfxd4 {[%clk 0:02:25]} 18... Rxf1+ {[%clk 0:01:29.4]} 19. Kxf1 {[%clk
0:02:26.9]} 1-0

[Event "*** Titled Tuesday Blitz"]
[Site "Chess.com"]
[Date "2020.02.04"]
[Round "6"]
[White "Hanging_pointer"]
[Black "HarryCun"]
[Result "1-0"]
[WhiteElo "2403"]
[BlackElo "2120"]
[TimeControl "180+2"]
[EndTime "10:17:17 PST"]
[Termination "Hanging_pointer won by resignation"]

1. d4 {[%clk 0:03:01.9]} 1... c6 {[%clk 0:03:01.3]} 2. c4 {[%clk 0:02:59.3]}
2... d5 {[%clk 0:03:02.7]} 3. cxd5 {[%clk 0:02:59.4]} 3... cxd5 {[%clk
0:03:03.1]} 4. Nc3 {[%clk 0:03:01.3]} 4... Nc6 {[%clk 0:03:03.8]} 5. Bf4 {[%clk
0:03:01.5]} 5... Nf6 {[%clk 0:03:04.6]} 6. e3 {[%clk 0:03:01.3]} 6... Bf5 {[%clk
0:03:05.3]} 7. Qb3 {[%clk 0:03:01.2]} 7... Qd7 {[%clk 0:03:03.1]} 8. Nf3 {[%clk
0:02:57.9]} 8... e6 {[%clk 0:03:03.7]} 9. Ne5 {[%clk 0:02:54.5]} 9... Qc8 {[%clk
0:03:03.6]} 10. Bb5 {[%clk 0:02:52.5]} 10... Be7 {[%clk 0:03:02.9]} 11. Qa4
{[%clk 0:02:50]} 11... O-O {[%clk 0:02:38.7]} 12. Nxc6 {[%clk 0:02:49.4]} 12...
bxc6 {[%clk 0:02:39.1]} 13. Bxc6 {[%clk 0:02:51.3]} 13... Rb8 {[%clk 0:02:36.8]}
14. Bxb8 {[%clk 0:02:49.6]} 14... Qxb8 {[%clk 0:02:36.9]} 15. Qb5 {[%clk
0:02:47.1]} 15... Qc7 {[%clk 0:02:36.7]} 16. Qb7 {[%clk 0:02:42.1]} 16... Qd6
{[%clk 0:02:29.2]} 17. O-O {[%clk 0:02:32]} 17... Rb8 {[%clk 0:02:26.4]} 18.
Qxa7 {[%clk 0:02:32.5]} 18... Rxb2 {[%clk 0:02:27.3]} 19. Bb5 {[%clk 0:02:25.9]}
19... Qb4 {[%clk 0:02:27.4]} 20. a4 {[%clk 0:02:22.7]} 20... Qxc3 {[%clk
0:02:25]} 21. Qxe7 {[%clk 0:02:21.9]} 21... h6 {[%clk 0:02:18]} 22. Qd8+ {[%clk
0:02:14]} 22... Kh7 {[%clk 0:02:18.1]} 23. Qf8 {[%clk 0:02:15.5]} 23... Ng4
{[%clk 0:01:45]} 24. Rac1 {[%clk 0:02:06.2]} 24... Qa3 {[%clk 0:01:38.9]} 25.
Qxa3 {[%clk 0:02:05]} 1-0

[Event "*** Titled Tuesday Blitz"]
[Site "Chess.com"]
[Date "2020.02.04"]
[Round "6"]
[White "SHIVACalypso"]
[Black "cancrushyou"]
[Result "0-1"]
[WhiteElo "2212"]
[BlackElo "2484"]
[TimeControl "180+2"]
[EndTime "10:17:31 PST"]
[Termination "cancrushyou won by resignation"]

1. Nf3 {[%clk 0:03:01.9]} 1... d5 {[%clk 0:02:58.6]} 2. c4 {[%clk 0:03:02.5]}
2... e6 {[%clk 0:02:59.3]} 3. g3 {[%clk 0:03:03.1]} 3... Nf6 {[%clk 0:03:00.1]}
4. Bg2 {[%clk 0:03:04.6]} 4... dxc4 {[%clk 0:02:59.3]} 5. Qa4+ {[%clk
0:03:03.6]} 5... Nbd7 {[%clk 0:02:56.5]} 6. Qxc4 {[%clk 0:03:05]} 6... a6 {[%clk
0:02:57.5]} 7. O-O {[%clk 0:03:05.9]} 7... b5 {[%clk 0:02:58.4]} 8. Qc2 {[%clk
0:03:07.2]} 8... Bb7 {[%clk 0:02:58.8]} 9. d4 {[%clk 0:03:08.2]} 9... c5 {[%clk
0:02:59]} 10. Rd1 {[%clk 0:03:06.3]} 10... Rc8 {[%clk 0:03:00]} 11. Qb3 {[%clk
0:02:41.6]} 11... cxd4 {[%clk 0:02:53]} 12. Nxd4 {[%clk 0:02:40.8]} 12... Bxg2
{[%clk 0:02:52.3]} 13. Kxg2 {[%clk 0:02:42.7]} 13... Bc5 {[%clk 0:02:42]} 14.
Nf3 {[%clk 0:02:21.4]} 14... O-O {[%clk 0:02:34.5]} 15. Nc3 {[%clk 0:02:14.8]}
15... Qb6 {[%clk 0:02:31.3]} 16. e3 {[%clk 0:02:12.8]} 16... Qb7 {[%clk
0:02:30.7]} 17. e4 {[%clk 0:01:56.1]} 17... Ng4 {[%clk 0:02:15.8]} 18. Nd4
{[%clk 0:01:46.9]} 18... Qb6 {[%clk 0:02:10.5]} 19. Nce2 {[%clk 0:01:44.2]}
19... Nxf2 {[%clk 0:02:06.4]} 20. Kxf2 {[%clk 0:01:43.4]} 20... e5 {[%clk
0:02:07.8]} 21. Be3 {[%clk 0:01:44.4]} 21... exd4 {[%clk 0:02:06.5]} 22. Nxd4
{[%clk 0:01:45.1]} 22... Nf6 {[%clk 0:02:04.5]} 23. e5 {[%clk 0:01:31.4]} 23...
Ng4+ {[%clk 0:02:03.7]} 24. Kg2 {[%clk 0:01:29.1]} 24... Nxe3+ {[%clk
0:02:04.1]} 25. Qxe3 {[%clk 0:01:31]} 25... Rcd8 {[%clk 0:01:58.7]} 0-1

[Event "*** Titled Tuesday Blitz"]
[Site "Chess.com"]
[Date "2020.02.04"]
[Round "6"]
[White "rasmussvane"]
[Black "Kimster98"]
[Result "1-0"]
[WhiteElo "2849"]
[BlackElo "2700"]
[TimeControl "180+2"]
[EndTime "10:17:46 PST"]
[Termination "rasmussvane won by resignation"]

1. Nf3 {[%clk 0:03:01.9]} 1... d5 {[%clk 0:03:00.3]} 2. g3 {[%clk 0:03:03]} 2...
Nf6 {[%clk 0:03:01.8]} 3. Bg2 {[%clk 0:03:03.6]} 3... c5 {[%clk 0:03:03.1]} 4.
O-O {[%clk 0:03:04.4]} 4... Nc6 {[%clk 0:03:04.7]} 5. d4 {[%clk 0:03:05.6]} 5...
cxd4 {[%clk 0:03:06.6]} 6. Nxd4 {[%clk 0:03:06.3]} 6... e5 {[%clk 0:03:08.2]} 7.
Nxc6 {[%clk 0:03:07.6]} 7... bxc6 {[%clk 0:03:10.1]} 8. c4 {[%clk 0:03:08.8]}
8... Be6 {[%clk 0:03:11.5]} 9. Nc3 {[%clk 0:03:06.8]} 9... Rc8 {[%clk
0:03:11.5]} 10. Qa4 {[%clk 0:03:02.6]} 10... Qd7 {[%clk 0:03:11.9]} 11. cxd5
{[%clk 0:03:03.9]} 11... cxd5 {[%clk 0:03:12.5]} 12. Qxd7+ {[%clk 0:03:05.4]}
12... Kxd7 {[%clk 0:03:14.4]} 13. Rd1 {[%clk 0:03:06.8]} 13... Bc5 {[%clk
0:03:15.6]} 14. Na4 {[%clk 0:03:07.9]} 14... Be7 {[%clk 0:03:16.3]} 15. Bg5
{[%clk 0:03:07.1]} 15... Ng8 {[%clk 0:03:16.1]} 16. Be3 {[%clk 0:03:03]} 16...
d4 {[%clk 0:03:03.6]} 17. Bd2 {[%clk 0:03:04.1]} 17... Nf6 {[%clk 0:02:36.5]}
18. e3 {[%clk 0:03:04.5]} 18... Nd5 {[%clk 0:02:07.4]} 19. exd4 {[%clk
0:03:00.4]} 19... exd4 {[%clk 0:02:09.3]} 20. Bc3 {[%clk 0:02:32.7]} 20... dxc3
{[%clk 0:01:35.4]} 21. Nxc3 {[%clk 0:02:32.1]} 21... Bf6 {[%clk 0:01:07.9]} 22.
Nxd5 {[%clk 0:02:27.5]} 22... Bxd5 {[%clk 0:01:08.6]} 23. Rxd5+ {[%clk
0:02:28.3]} 23... Ke7 {[%clk 0:00:59.9]} 24. Re1+ {[%clk 0:02:27.7]} 24... Kf8
{[%clk 0:01:01.2]} 25. Rd7 {[%clk 0:02:27.1]} 25... a5 {[%clk 0:00:56.7]} 26.
Bd5 {[%clk 0:02:24.6]} 1-0

[Event "*** Titled Tuesday Blitz"]
[Site "Chess.com"]
[Date "2020.02.04"]
[Round "6"]
[White "bazar-wokzal"]
[Black "Zarikovs1999"]
[Result "1-0"]
[WhiteElo "2544"]
[BlackElo "2349"]
[TimeControl "180+2"]
[EndTime "10:17:47 PST"]
[Termination "bazar-wokzal won by resignation"]

1. e4 {[%clk 0:03:01.9]} 1... c5 {[%clk 0:02:30.5]} 2. c3 {[%clk 0:03:02.1]}
2... Qa5 {[%clk 0:02:27.9]} 3. Nf3 {[%clk 0:03:01.9]} 3... g6 {[%clk 0:02:27.8]}
4. Bc4 {[%clk 0:03:01.5]} 4... Bg7 {[%clk 0:02:28.8]} 5. O-O {[%clk 0:03:02.1]}
5... d6 {[%clk 0:02:29.3]} 6. d4 {[%clk 0:03:02.1]} 6... cxd4 {[%clk 0:02:27.6]}
7. cxd4 {[%clk 0:03:02.7]} 7... Nf6 {[%clk 0:02:29]} 8. e5 {[%clk 0:03:02.2]}
8... dxe5 {[%clk 0:02:09.4]} 9. dxe5 {[%clk 0:03:02.8]} 9... Ng4 {[%clk
0:02:10]} 10. e6 {[%clk 0:03:01.1]} 10... fxe6 {[%clk 0:02:01.6]} 11. Ng5 {[%clk
0:02:59.7]} 11... O-O {[%clk 0:01:58.2]} 12. Qxg4 {[%clk 0:02:58.1]} 12... Kh8
{[%clk 0:01:25.9]} 13. Qh3 {[%clk 0:02:41.4]} 13... h5 {[%clk 0:01:18.6]} 14.
Bxe6 {[%clk 0:02:38.2]} 14... Rxf2 {[%clk 0:01:00]} 15. Kxf2 {[%clk 0:02:20]}
15... Bd4+ {[%clk 0:00:45]} 16. Be3 {[%clk 0:02:15.5]} 16... Bxb2 {[%clk
0:00:30.6]} 17. Bxc8 {[%clk 0:02:14.9]} 17... Bxa1 {[%clk 0:00:23.8]} 18. Bxb7
{[%clk 0:02:14.3]} 1-0

[Event "*** Titled Tuesday Blitz"]
[Site "Chess.com"]
[Date "2020.02.04"]
[Round "6"]
[White "MikeSailer"]
[Black "AleksanderHnydiuk"]
[Result "0-1"]
[WhiteElo "2103"]
[BlackElo "2531"]
[TimeControl "180+2"]
[EndTime "10:17:48 PST"]
[Termination "AleksanderHnydiuk won by resignation"]

1. Nf3 {[%clk 0:03:01.9]} 1... c5 {[%clk 0:02:59.4]} 2. b3 {[%clk 0:03:01.8]}
2... d5 {[%clk 0:02:59.4]} 3. Bb2 {[%clk 0:02:57.1]} 3... f6 {[%clk 0:03:00.4]}
4. e3 {[%clk 0:02:49.3]} 4... e5 {[%clk 0:03:00.2]} 5. Bb5+ {[%clk 0:02:47.1]}
5... Bd7 {[%clk 0:02:33.1]} 6. Bxd7+ {[%clk 0:02:39.1]} 6... Qxd7 {[%clk
0:02:32.7]} 7. d3 {[%clk 0:02:40.1]} 7... Bd6 {[%clk 0:02:28.9]} 8. Nbd2 {[%clk
0:02:40.1]} 8... Ne7 {[%clk 0:02:26.4]} 9. e4 {[%clk 0:02:36]} 9... Nbc6 {[%clk
0:02:08.7]} 10. exd5 {[%clk 0:02:14.1]} 10... Nxd5 {[%clk 0:02:08.4]} 11. Ne4
{[%clk 0:02:15.3]} 11... O-O {[%clk 0:02:09]} 12. Nxd6 {[%clk 0:02:14.2]} 12...
Qxd6 {[%clk 0:02:09.4]} 13. Nd2 {[%clk 0:02:11.4]} 13... Nd4 {[%clk 0:02:00.5]}
14. Ne4 {[%clk 0:02:02.5]} 14... Qc6 {[%clk 0:02:01.2]} 15. O-O {[%clk
0:02:02.3]} 15... Nf4 {[%clk 0:01:59.3]} 16. Bc1 {[%clk 0:01:22.2]} 16... Nde2+
{[%clk 0:01:54.6]} 17. Kh1 {[%clk 0:01:21.4]} 17... Nxc1 {[%clk 0:01:53.3]} 18.
Rxc1 {[%clk 0:01:21.7]} 18... f5 {[%clk 0:01:54.5]} 19. g3 {[%clk 0:01:04.8]}
19... Ne6 {[%clk 0:01:53.2]} 0-1

[Event "*** Titled Tuesday Blitz"]
[Site "Chess.com"]
[Date "2020.02.04"]
[Round "6"]
[White "SantoBlue"]
[Black "Andrei_Belozerov"]
[Result "0-1"]
[WhiteElo "2825"]
[BlackElo "2631"]
[TimeControl "180+2"]
[EndTime "10:18:33 PST"]
[Termination "Andrei_Belozerov won by resignation"]

1. d4 {[%clk 0:03:01.9]} 1... d5 {[%clk 0:02:58.2]} 2. c4 {[%clk 0:03:02.2]}
2... c6 {[%clk 0:02:58.8]} 3. Nf3 {[%clk 0:03:02.6]} 3... Nf6 {[%clk 0:02:59.6]}
4. e3 {[%clk 0:03:02.1]} 4... Bg4 {[%clk 0:03:00]} 5. Nc3 {[%clk 0:02:59.3]}
5... e6 {[%clk 0:03:00.7]} 6. Qc2 {[%clk 0:02:56.8]} 6... Nbd7 {[%clk
0:02:59.7]} 7. Be2 {[%clk 0:02:54.1]} 7... Bd6 {[%clk 0:03:00.1]} 8. e4 {[%clk
0:02:50.3]} 8... dxe4 {[%clk 0:02:41.1]} 9. Nxe4 {[%clk 0:02:50.5]} 9... Nxe4
{[%clk 0:02:41.8]} 10. Qxe4 {[%clk 0:02:51.3]} 10... Nf6 {[%clk 0:02:33.5]} 11.
Qc2 {[%clk 0:02:49.5]} 11... Qc7 {[%clk 0:02:33.8]} 12. Be3 {[%clk 0:02:45.8]}
12... O-O {[%clk 0:02:26.2]} 13. h3 {[%clk 0:02:46.6]} 13... Bf5 {[%clk
0:02:26.7]} 14. Qb3 {[%clk 0:02:47]} 14... b5 {[%clk 0:02:18.8]} 15. O-O {[%clk
0:02:46.1]} 15... bxc4 {[%clk 0:02:19.2]} 16. Qxc4 {[%clk 0:02:46.5]} 16... Nd5
{[%clk 0:02:18.1]} 17. Rac1 {[%clk 0:02:46.3]} 17... Rfc8 {[%clk 0:02:18.5]} 18.
Bd3 {[%clk 0:02:39.3]} 18... Bg6 {[%clk 0:02:04.4]} 19. Bxg6 {[%clk 0:02:35.8]}
19... hxg6 {[%clk 0:02:05]} 20. Rfd1 {[%clk 0:02:35.6]} 20... Rab8 {[%clk
0:02:05.2]} 21. Qe2 {[%clk 0:02:36.7]} 21... Qa5 {[%clk 0:01:59.3]} 22. a3
{[%clk 0:02:33.7]} 22... Rb3 {[%clk 0:01:53.5]} 23. Rc2 {[%clk 0:02:34.3]} 23...
Rcb8 {[%clk 0:01:49.2]} 24. Rdc1 {[%clk 0:02:27.4]} 24... Nf4 {[%clk 0:01:25.8]}
25. Bxf4 {[%clk 0:02:20.6]} 25... Bxf4 {[%clk 0:01:26.4]} 26. Rd1 {[%clk
0:02:20.7]} 26... Qd5 {[%clk 0:01:20.7]} 27. Rc5 {[%clk 0:02:17.1]} 27... Rxb2
{[%clk 0:01:09.4]} 28. Qa6 {[%clk 0:02:18.1]} 28... Qb3 {[%clk 0:01:05.2]} 29.
Rf1 {[%clk 0:02:17.8]} 29... Rb1 {[%clk 0:00:56.3]} 30. Rxc6 {[%clk 0:02:15]}
30... Rxf1+ {[%clk 0:00:55.3]} 31. Qxf1 {[%clk 0:02:16.9]} 31... Qxa3 {[%clk
0:00:55.9]} 32. Qc4 {[%clk 0:02:18]} 32... Rb1+ {[%clk 0:00:52.5]} 0-1